bitfinex/quotes_BTCUSD_20260311
["timestamp","ask_amount","ask_price","bid_price","bid_amount"]
[1773207677373,0.07170309,69732.0,69712.0,0.0720354]
[1773207677581,0.0849695,69731.0,69712.0,0.0730354]
[1773207677782,0.0849695,69731.0,69712.0,0.0720354]
[1773207678481,0.07170514,69730.0,69712.0,0.0720354]
[1773207678705,0.1562738,69731.0,69712.0,0.0720354]
[1773207679562,0.0717043,69731.0,69712.0,0.0720354]
[1773207679779,0.33525236,69733.0,69712.0,0.0730354]
[1773207679953,0.33525236,69733.0,69712.0,0.0720354]
[1773207680500,0.33525236,69733.0,69712.0,0.0730354]
[1773207680705,0.26355005,69733.0,69712.0,0.0730354]
[1773207681010,0.26377006,69733.0,69712.0,0.0720354]
[1773207681212,0.14105675,69732.0,69712.0,0.0720354]
[1773207681567,0.14105675,69732.0,69712.0,0.0730354]
[1773207681923,0.14106156,69732.0,69712.0,0.0730354]
[1773207682292,0.26377006,69733.0,69712.0,0.0730354]
[1773207682920,0.26377006,69733.0,69712.0,0.0720354]
[1773207683125,0.26377006,69733.0,69712.0,0.0730354]
[1773207683529,0.33547219,69733.0,69712.0,0.0720354]
[1773207683948,0.33547219,69733.0,69712.0,0.0730354]
[1773207684364,0.26377006,69733.0,69712.0,0.0730354]
[1773207684725,0.26377006,69733.0,69712.0,0.0720354]
[1773207685198,0.33547217,69733.0,69712.0,0.0720354]
[1773207686583,0.33547217,69733.0,69712.0,0.0730354]
[1773207686934,0.33547217,69733.0,69712.0,0.0720354]
[1773207687361,0.33547217,69733.0,69712.0,0.0730354]
[1773207688862,0.26377006,69733.0,69712.0,0.0730354]
[1773207692919,0.07313185,69743.0,69712.0,0.0730354]
[1773207693130,0.07313185,69743.0,69713.0,0.00144]
[1773207693339,0.21447799,69743.0,69713.0,0.00144]
[1773207693548,0.14134614,69742.0,69714.0,0.0717216]
[1773207693752,0.11250961,69741.0,69714.0,0.0717216]
[1773207694161,0.11250961,69749.0,69730.0,0.14811046]
[1773207694321,0.00144,69748.0,69731.0,0.00144]
[1773207694525,0.00144,69748.0,69720.0,0.14811046]
[1773207694526,0.00144,69748.0,69732.0,0.00144]
[1773207694885,0.00144,69748.0,69733.0,0.00144]
[1773207695060,0.00144,69748.0,69734.0,0.00144]
[1773207695650,0.00144,69748.0,69735.0,0.0717]
[1773207696197,0.00181356,69748.0,69735.0,0.0717]
[1773207696396,0.1147065,69748.0,69735.0,0.0717]
[1773207696781,0.1863932,69748.0,69735.0,0.0717]
[1773207697332,0.0002878,69751.0,69735.0,0.0717]
[1773207697562,0.0003998,69751.0,69735.0,0.0727]
[1773207698489,0.11341191,69751.0,69735.0,0.0727]
[1773207699039,0.0003998,69751.0,69735.0,0.0737]
[1773207699244,0.0003998,69751.0,69736.0,0.00144]
[1773207699659,0.0003998,69751.0,69737.0,0.00144]
[1773207699867,0.11349136,69747.0,69734.0,0.0717]
[1773207700065,0.11349136,69747.0,69725.0,0.07234025]
[1773207700066,0.11349136,69747.0,69735.0,0.001]
[1773207700243,0.11349136,69747.0,69726.0,0.07170869]
[1773207700648,0.11349136,69745.0,69726.0,0.07170869]
[1773207701307,0.11349136,69745.0,69737.0,0.001]
[1773207701651,0.07169075,69744.0,69737.0,0.001]
[1773207701850,0.12136792,69743.0,69732.0,0.07170284]
[1773207703060,0.12136792,69743.0,69730.0,0.07170462]
[1773207705079,0.07169281,69742.0,69726.0,0.07170915]
[1773207705280,0.12136792,69741.0,69726.0,0.07170915]
[1773207705485,0.12136792,69739.0,69726.0,0.07170915]
[1773207709646,0.07169692,69738.0,69726.0,0.07170915]
[1773207709859,0.19306484,69738.0,69726.0,0.07170915]
[1773207710369,0.12136792,69737.0,69726.0,0.07170915]
[1773207711768,0.07169696,69738.0,69726.0,0.07170915]
[1773207712899,0.00144,69737.0,69726.0,0.07170915]
[1773207713798,0.07313802,69737.0,69726.0,0.07170915]
[1773207714011,0.00144,69736.0,69726.0,0.07170915]
[1773207714812,0.0015702,69736.0,69726.0,0.07170915]
[1773207716822,0.00144,69746.0,69726.0,0.21980947]
[1773207716996,0.00022001,69747.0,69727.0,0.00144]
[1773207717194,0.00144,69745.0,69727.0,0.00144]
[1773207717606,0.00022001,69747.0,69727.0,0.00144]
[1773207717930,0.07334782,69747.0,69727.0,0.00144]
[1773207718128,0.00166001,69747.0,69727.0,0.00144]
[1773207718534,0.07334769,69747.0,69728.0,0.0717072]
[1773207719571,0.00022001,69740.0,69728.0,0.0717072]
[1773207719969,0.07334769,69747.0,69728.0,0.0717072]
[1773207720339,0.00188091,69748.0,69728.0,0.0717072]
[1773207720546,0.000112,69751.0,69730.0,0.14810032]
[1773207720945,0.12136792,69750.0,69728.0,0.0717072]
[1773207721144,0.000112,69751.0,69728.0,0.0717072]
[1773207721145,0.12136792,69748.0,69728.0,0.0731472]
[1773207721385,0.12136792,69748.0,69725.0,0.07233971]
[1773207721592,0.14136693,69748.0,69725.0,0.07233971]
[1773207721741,0.26273485,69748.0,69725.0,0.07233971]
[1773207721941,0.12136792,69747.0,69725.0,0.07233971]
[1773207722797,0.12136792,69745.0,69725.0,0.07233971]
[1773207723552,0.12136792,69745.0,69718.0,0.07171669]
[1773207723553,0.14135544,69745.0,69715.0,0.07171959]
[1773207723722,0.12136792,69744.0,69716.0,0.07171944]
[1773207724084,0.12136792,69744.0,69716.0,0.07171929]
[1773207724651,0.12136792,69744.0,69704.0,0.00562]
[1773207724922,0.12136792,69741.0,69706.0,0.07172977]
[1773207725223,0.38254557,69743.0,69706.0,0.07172977]
[1773207725224,0.12136792,69739.0,69706.0,0.07172977]
[1773207726784,0.12136792,69737.0,69706.0,0.07172977]
[1773207727002,0.14135544,69737.0,69706.0,0.07172977]
[1773207727238,0.12136792,69736.0,69706.0,0.07172977]
[1773207728374,0.12236792,69736.0,69706.0,0.07172977]
[1773207728890,0.12136792,69734.0,69706.0,0.07172977]
[1773207729091,0.00144,69733.0,69706.0,0.07172977]
[1773207729247,0.12136792,69732.0,69706.0,0.07172977]
[1773207729858,0.12136792,69730.0,69706.0,0.07172977]
[1773207731057,0.12136792,69728.0,69706.0,0.07210333]
[1773207731299,0.12136792,69728.0,69707.0,0.0717288]
[1773207733316,0.12136792,69726.0,69707.0,0.0717288]
[1773207733519,0.00144,69725.0,69707.0,0.0717288]
[1773207733723,0.12136792,69724.0,69707.0,0.0717288]
[1773207733883,0.00144,69723.0,69707.0,0.0717288]
[1773207734481,0.07170823,69727.0,69707.0,0.0717288]
[1773207734687,0.00144,69726.0,69710.0,0.14810032]
[1773207734957,0.00144,69725.0,69710.0,0.00144]
[1773207735331,0.07171131,69724.0,69711.0,0.07172469]
[1773207735637,0.00144,69723.0,69711.0,0.07172469]
[1773207736415,0.07171131,69724.0,69711.0,0.07172469]
[1773207736729,0.07315131,69724.0,69711.0,0.07172469]
[1773207736934,0.00144,69724.0,69711.0,0.07172469]
[1773207737290,0.0731514,69724.0,69711.0,0.07172469]
[1773207737486,0.00144,69724.0,69711.0,0.07172469]
[1773207737812,0.19306859,69735.0,69711.0,0.07172469]
[1773207738133,0.00144,69734.0,69711.0,0.07172469]
[1773207738511,0.00144,69733.0,69711.0,0.07172469]
[1773207738837,0.00144,69732.0,69711.0,0.07172469]
[1773207739232,0.07170294,69733.0,69711.0,0.07272469]
[1773207739439,0.00144,69732.0,69711.0,0.07272469]
[1773207739669,0.00144,69732.0,69711.0,0.07172469]
[1773207740042,0.00144,69732.0,69711.0,0.07272469]
[1773207740435,0.07170294,69733.0,69711.0,0.07172469]
[1773207740620,0.00144,69732.0,69711.0,0.07172469]
[1773207741919,0.12136792,69731.0,69711.0,0.07172469]
[1773207742352,0.12136792,69731.0,69711.0,0.07316469]
[1773207742755,0.12136792,69731.0,69711.0,0.07172469]
[1773207742995,0.12136792,69731.0,69712.0,0.00144]
[1773207743406,0.07170514,69730.0,69711.0,0.07316469]
[1773207743745,0.12136792,69729.0,69711.0,0.07316469]
[1773207743999,0.12136792,69729.0,69711.0,0.07172469]
[1773207745636,0.12136792,69727.0,69711.0,0.07172469]
[1773207745846,0.12136792,69725.0,69710.0,0.00144]
[1773207746078,0.12136792,69725.0,69708.0,0.07212469]
[1773207746626,0.12136792,69725.0,69708.0,0.07212729]
[1773207746830,0.12136792,69725.0,69708.0,0.0004]
[1773207747063,0.12136792,69725.0,69704.0,0.00562]
[1773207747064,0.12136792,69725.0,69698.0,0.07173779]
[1773207747368,0.12136792,69725.0,69700.0,0.00754174]
[1773207747662,0.12136792,69723.0,69700.0,0.00754174]
[1773207748463,0.14107187,69723.0,69700.0,1e-08]
[1773207748663,0.07171131,69724.0,69700.0,1e-08]
[1773207748863,0.12136792,69723.0,69700.0,1e-08]
[1773207749230,0.12136792,69722.0,69700.0,1e-08]
[1773207749742,0.06432687,69715.0,69700.0,1e-08]
[1773207749973,0.12280792,69714.0,69697.0,1e-08]
[1773207750167,0.12291991,69714.0,69697.0,1e-08]
[1773207750385,0.12291991,69714.0,69692.0,1e-08]
[1773207750996,0.00155199,69714.0,69692.0,1e-08]
[1773207751159,0.12136792,69713.0,69692.0,1e-08]
[1773207751730,0.12136792,69711.0,69692.0,1e-08]
[1773207753065,0.12136792,69711.0,69660.0,0.14810032]
[1773207753413,0.12136792,69711.0,69647.0,0.04308707]
[1773207753414,0.12136792,69711.0,69564.0,0.0060367]
[1773207753415,0.00023,69625.0,69564.0,0.0060367]
[1773207753551,1.745283,69599.0,69561.0,0.00086851]
[1773207753760,1.745283,69599.0,69528.0,0.06365466]
[1773207753761,0.00562,69564.0,69528.0,0.06365466]
[1773207753906,0.06204553,69563.0,69528.0,0.06365466]
[1773207754111,0.06064553,69548.0,69502.0,0.01361612]
[1773207754351,0.00023,69550.0,69465.0,0.07897848]
[1773207754352,0.03234816,69522.0,69465.0,0.07897848]
[1773207754526,0.17216,69524.0,69466.0,0.01329716]
[1773207754527,0.06064553,69490.0,69466.0,0.01329716]
[1773207754730,0.00562,69508.0,69466.0,0.07197756]
[1773207754731,0.1113558,69485.0,69466.0,0.07197756]
[1773207754966,0.1113558,69485.0,69453.0,0.07199033]
[1773207754967,0.06064553,69477.0,69449.0,0.04319206]
[1773207755169,0.14068314,69476.0,69475.0,0.00023]
[1773207755322,0.27842165,69498.0,69453.0,0.00792895]
[1773207755534,0.27842165,69498.0,69452.0,0.00562]
[1773207755535,0.00023,69500.0,69450.0,0.95876]
[1773207755536,0.07196419,69479.0,69450.0,0.95876]
[1773207755758,0.00162549,69478.0,69450.0,0.95876]
[1773207755968,0.00023,69475.0,69445.0,0.07199942]
[1773207756169,0.00018549,69478.0,69450.0,0.00023]
[1773207756330,0.0146334,69510.0,69454.0,0.672924]
[1773207756331,0.07194348,69499.0,69454.0,0.672924]
[1773207756533,0.07194348,69499.0,69457.0,0.06380253]
[1773207756768,0.00576303,69518.0,69454.0,0.00037157]
[1773207756769,0.0719352,69507.0,69475.0,0.00023]
[1773207757418,0.07192899,69513.0,69481.0,0.13988833]
[1773207757594,0.07192466,69518.0,69480.0,0.00562]
[1773207757595,0.06066386,69516.0,69480.0,0.00562]
[1773207757798,0.06066386,69514.0,69480.0,0.00562]
[1773207758096,0.06066386,69499.0,69455.0,0.0014]
[1773207758245,0.06066386,69499.0,69457.0,0.13988833]
[1773207758246,0.00562,69480.0,69457.0,0.13988833]
[1773207758454,0.17234325,69529.0,69480.0,0.00562]
[1773207758685,0.00011208,69526.0,69510.0,0.14810032]
[1773207758886,0.17236,69548.0,69500.0,0.29643064]
[1773207758887,0.00144,69533.0,69516.0,0.14810032]
[1773207759091,0.00144,69533.0,69500.0,0.29643064]
[1773207759092,0.06066386,69531.0,69480.0,0.00562]
[1773207759304,0.06066386,69524.0,69480.0,0.00562]
[1773207759483,0.00144,69523.0,69480.0,0.00562]
[1773207759692,0.03234816,69517.0,69480.0,0.00562]
[1773207759893,0.03234816,69511.0,69480.0,0.00562]
[1773207760246,0.06066386,69507.0,69468.0,0.0014]
[1773207760397,0.00023,69500.0,69457.0,0.0014]
[1773207760593,0.06210386,69499.0,69457.0,0.0014]
[1773207760795,0.06066386,69497.0,69460.0,0.14810032]
[1773207761197,0.06066386,69495.0,69460.0,0.14810032]
[1773207761379,0.06066386,69495.0,69460.0,0.00037157]
[1773207761582,0.00023,69500.0,69461.0,0.07198283]
[1773207761583,0.00144,69494.0,69461.0,0.07198283]
[1773207761901,0.06066386,69493.0,69460.0,0.00037157]
[1773207762101,0.06066386,69493.0,69460.0,0.00177157]
[1773207762719,0.06066386,69493.0,69460.0,0.00037157]
[1773207763073,0.06066386,69493.0,69461.0,0.07198283]
[1773207763422,0.00562,69480.0,69450.0,0.00023]
[1773207763726,0.07196522,69478.0,69450.0,0.00023]
[1773207763884,0.07196522,69478.0,69440.0,0.14810032]
[1773207763885,0.06066386,69477.0,69437.0,0.07248683]
[1773207764070,0.06066386,69474.0,69438.0,0.00144]
[1773207764274,0.00023,69475.0,69438.0,0.00144]
[1773207764475,0.06066386,69474.0,69437.0,0.00048]
[1773207764769,0.00144,69473.0,69440.0,0.14810032]
[1773207765133,0.00023,69475.0,69450.0,0.14810032]
[1773207765553,0.07195279,69490.0,69460.0,0.14810032]
[1773207765768,0.0001537,69477.0,69461.0,0.06441474]
[1773207765977,0.06066386,69493.0,69461.0,0.07198283]
[1773207766122,0.07195072,69492.0,69470.0,0.14810032]
[1773207766321,0.00144,69491.0,69460.0,0.22045724]
[1773207766623,0.06170386,69491.0,69461.0,0.00144]
[1773207767031,0.06066386,69491.0,69461.0,0.07342283]
[1773207767551,0.07195072,69495.0,69461.0,0.07342283]
[1773207767552,0.07194348,69499.0,69461.0,0.07342283]
[1773207767718,0.07194348,69499.0,69461.0,0.13722536]
[1773207767918,0.07217348,69500.0,69480.0,0.14810032]
[1773207767919,0.00023,69500.0,69480.0,0.14810032]
[1773207768116,0.00023,69525.0,69480.0,0.14810032]
[1773207768117,0.0719352,69507.0,69482.0,0.20369086]
[1773207769329,0.0719352,69507.0,69482.0,0.13881894]
[1773207769954,0.07755514,69508.0,69490.0,0.14910329]
[1773207770153,0.07755514,69508.0,69491.0,0.00148]
[1773207770933,0.0719352,69507.0,69492.0,0.00148]
[1773207771145,0.0719352,69509.0,69492.0,0.00148]
[1773207771349,0.0719352,69509.0,69482.0,0.21077898]
[1773207771350,0.0719352,69507.0,69482.0,0.00011144]
[1773207771554,0.0719352,69507.0,69483.0,0.00148]
[1773207771970,0.0719352,69507.0,69484.0,0.07195901]
[1773207772553,0.00148,69506.0,69483.0,0.07343901]
[1773207772839,0.00148,69506.0,69484.0,0.00148]
[1773207773236,0.00148,69506.0,69483.0,0.06406708]
[1773207773501,0.00148,69506.0,69484.0,0.00148]
[1773207773649,0.00148,69506.0,69484.0,0.000805]
[1773207774253,0.07193727,69505.0,69485.0,0.07195797]
[1773207774773,0.08,69500.0,69486.0,0.00148]
[1773207774953,0.07193727,69505.0,69486.0,0.00148]
[1773207775354,0.05186098,69505.0,69486.0,0.00148]
[1773207775776,0.05186098,69505.0,69464.0,0.07197897]
[1773207775777,0.07006685,69504.0,69464.0,0.07197897]
[1773207775952,0.07006685,69504.0,69475.0,0.07219776]
[1773207775953,0.00011198,69504.0,69475.0,0.07219776]
[1773207776156,0.00011198,69504.0,69475.0,0.00023]
[1773207776157,0.00148,69503.0,69475.0,0.00023]
[1773207776563,0.07194037,69502.0,69475.0,0.07219731]
[1773207776769,0.07194037,69502.0,69476.0,0.00148]
[1773207776971,0.07194037,69502.0,69421.0,0.0384]
[1773207776972,0.07029685,69500.0,69454.0,0.07199009]
[1773207777211,0.07029685,69500.0,69455.0,0.00148]
[1773207777493,0.07029685,69500.0,69452.0,0.07761009]
[1773207777494,0.07029685,69500.0,69456.0,0.00148]
[1773207777695,0.07029685,69500.0,69457.0,0.00148]
[1773207777896,0.07006685,69498.0,69457.0,0.00148]
[1773207778267,0.00148,69497.0,69457.0,0.00148]
[1773207778469,0.07194658,69496.0,69458.0,0.07198594]
[1773207778670,0.27842165,69477.0,69452.0,0.00562]
[1773207778892,0.15837182,69480.0,69450.0,0.04829168]
[1773207778893,0.27842165,69469.0,69450.0,0.04829168]
[1773207779125,0.27842165,69469.0,69449.0,0.07199424]
[1773207779126,0.27842165,69462.0,69451.0,0.00148]
[1773207779403,0.13555951,69461.0,69451.0,0.00037378]
[1773207779614,0.13555951,69460.0,69451.0,0.00037378]
[1773207779843,0.13555951,69459.0,69451.0,0.00037378]
[1773207780026,0.13555951,69458.0,69451.0,0.00037378]
[1773207780231,0.00023,69475.0,69451.0,0.00037378]
[1773207780435,0.00148,69474.0,69451.0,0.00074714]
[1773207780730,0.0719704,69473.0,69451.0,0.00074714]
[1773207781032,0.0719704,69473.0,69451.0,0.07273967]
[1773207781233,0.27842165,69473.0,69453.0,0.07221523]
[1773207781433,0.27842165,69481.0,69453.0,0.07221523]
[1773207781652,0.27842165,69481.0,69449.0,0.0719932]
[1773207781653,0.15837182,69474.0,69424.0,0.1719]
[1773207781853,0.00037382,69474.0,69450.0,0.14910329]
[1773207782036,0.00037382,69474.0,69452.0,0.07221523]
[1773207782229,0.00037382,69474.0,69460.0,0.14910329]
[1773207782411,0.00037382,69474.0,69461.0,0.00148]
[1773207782612,0.07234422,69474.0,69462.0,0.00148]
[1773207782965,0.00037382,69474.0,69463.0,0.00148]
[1773207783110,0.00037382,69474.0,69464.0,0.00148]
[1773207783671,0.07196485,69479.0,69464.0,0.00148]
[1773207783672,0.07195732,69486.0,69465.0,0.07221523]
[1773207783872,0.07195732,69486.0,69464.0,0.0008725]
[1773207783873,0.00011208,69486.0,69471.0,0.07221523]
[1773207784034,0.07194617,69497.0,69473.0,0.07221523]
[1773207784035,0.07194623,69497.0,69473.0,0.07221523]
[1773207784246,0.07194623,69497.0,69473.0,0.07232731]
[1773207784247,0.4239653,69497.0,69473.0,0.07232731]
[1773207784425,0.1682215,69478.0,69473.0,0.07232731]
[1773207784632,0.1682215,69476.0,69474.0,0.14566459]
[1773207784942,0.07195811,69485.0,69475.0,0.00148]
[1773207785161,0.16824248,69476.0,69475.0,0.00148]
[1773207785381,0.07193794,69505.0,69476.0,0.07221523]
[1773207785557,0.07193795,69505.0,69476.0,0.07221523]
[1773207785756,0.00562,69508.0,69477.0,0.00148]
[1773207785757,0.07217267,69500.0,69477.0,0.00148]
[1773207786679,0.07217267,69500.0,69478.0,0.07344522]
[1773207786860,0.07217267,69500.0,69476.0,0.00148]
[1773207787456,0.07217267,69500.0,69477.0,0.00148]
[1773207787656,0.07228473,69500.0,69477.0,0.00148]
[1773207787862,0.08,69494.0,69480.0,0.14910329]
[1773207788408,0.08,69494.0,69481.0,0.00148]
[1773207788607,0.08,69494.0,69482.0,0.00148]
[1773207788913,0.08,69494.0,69483.0,0.00148]
[1773207788914,0.06537488,69494.0,69483.0,0.00148]
[1773207789061,0.00034206,69500.0,69485.0,0.07221523]
[1773207789669,0.07215558,69507.0,69490.0,0.14910329]
[1773207789916,0.07215558,69507.0,69490.0,0.00011206]
[1773207790311,0.00022001,69507.0,69490.0,0.14921535]
[1773207790519,0.00022001,69507.0,69490.0,0.22143058]
[1773207790691,0.00022001,69507.0,69491.0,0.07195176]
[1773207790900,0.00562,69508.0,69493.0,0.07221523]
[1773207790901,1e-08,69508.0,69493.0,0.07221523]
[1773207791283,0.0719294,69513.0,69493.0,0.07221523]
[1773207791492,0.07214822,69514.0,69493.0,0.07221523]
[1773207791700,0.07214822,69514.0,69494.0,0.00148]
[1773207791902,0.00022001,69514.0,69494.0,0.00148]
[1773207792222,0.1401458,69513.0,69494.0,0.00148]
[1773207792418,0.07214839,69514.0,69494.0,0.00148]
[1773207792419,0.1401458,69512.0,69494.0,0.00148]
[1773207792793,0.1401458,69511.0,69495.0,0.07194762]
[1773207792939,0.13662774,69510.0,69495.0,0.07194762]
[1773207793139,0.00022001,69514.0,69500.0,0.2]
[1773207793322,0.00022001,69514.0,69501.0,0.00148]
[1773207793861,0.07191873,69523.0,69501.0,0.00148]
[1773207794872,0.07191873,69523.0,69502.0,0.07194037]
[1773207795115,0.07214864,69525.0,69502.0,0.07194037]
[1773207795116,0.00023,69525.0,69502.0,0.07194037]
[1773207795307,0.28029159,69547.0,69502.0,0.07194037]
[1773207795308,0.07190623,69535.0,69506.0,0.07221523]
[1773207795494,0.07190623,69535.0,69510.0,0.14910329]
[1773207795801,0.07190623,69535.0,69511.0,0.00148]
[1773207796133,0.00022001,69522.0,69511.0,0.00148]
[1773207796404,0.07190623,69535.0,69511.0,0.00148]
[1773207796606,0.07190623,69535.0,69512.0,0.07221523]
[1773207796786,0.07190623,69535.0,69513.0,0.07192899]
[1773207796973,0.07201831,69535.0,69513.0,0.07192899]
[1773207797619,0.07201831,69535.0,69513.0,0.06700824]
[1773207797996,0.07201831,69535.0,69514.0,0.00148]
[1773207798379,0.07201831,69535.0,69513.0,0.06700824]
[1773207798580,0.07201831,69535.0,69514.0,0.00148]
[1773207798988,0.07201831,69535.0,69515.0,0.07192692]
[1773207799336,0.07201831,69535.0,69515.0,0.0713809]
[1773207799821,0.07161831,69535.0,69515.0,0.0713809]
[1773207800186,0.00011208,69535.0,69515.0,0.0713809]
[1773207800388,0.00011208,69535.0,69520.0,0.14910329]
[1773207800652,0.00011208,69535.0,69521.0,0.00148]
[1773207800979,1e-08,69536.0,69522.0,0.07191968]
[1773207801180,1e-08,69536.0,69522.0,0.07203176]
[1773207801783,0.07190559,69536.0,69522.0,0.07203176]
[1773207801993,0.07190559,69536.0,69523.0,0.00148]
[1773207802309,0.07190559,69536.0,69522.0,0.07203176]
[1773207802512,0.07190559,69536.0,69523.0,0.00148]
[1773207803444,0.00022001,69535.0,69523.0,0.07191864]
[1773207803641,0.00022001,69535.0,69522.0,0.0720311]
[1773207803819,0.00022001,69535.0,69524.0,0.00148]
[1773207805837,0.07212681,69535.0,69525.0,0.07191657]
[1773207806246,0.07212681,69535.0,69525.0,0.05176254]
[1773207806852,0.07212635,69535.0,69525.0,0.05176254]
[1773207807166,0.00022001,69535.0,69525.0,0.05176254]
[1773207809197,1e-08,69536.0,69525.0,0.05176254]
[1773207809400,1e-08,69542.0,69525.0,0.05176254]
[1773207809582,1e-08,69542.0,69526.0,0.07810565]
[1773207810204,1e-08,69542.0,69531.0,0.07191037]
[1773207810380,0.07211181,69549.0,69531.0,0.15001602]
[1773207810586,0.07211177,69549.0,69532.0,0.00148]
[1773207810788,0.00022001,69549.0,69532.0,0.00148]
[1773207810989,0.07212098,69550.0,69532.0,0.00148]
[1773207810990,0.00023,69550.0,69532.0,0.00148]
[1773207812096,0.07212101,69550.0,69532.0,0.00148]
[1773207812384,0.00023,69550.0,69533.0,0.0719083]
[1773207813098,0.07212095,69550.0,69533.0,0.0719083]
[1773207813321,0.00023,69550.0,69533.0,0.0719083]
[1773207813522,0.00022001,69549.0,69533.0,0.0719083]
[1773207814390,0.00022001,69549.0,69534.0,0.00148]
[1773207814391,0.08224394,69547.0,69534.0,0.00148]
[1773207814580,0.00022001,69549.0,69535.0,0.00148]
[1773207814791,0.00022001,69549.0,69536.0,0.00148]
[1773207815144,0.00023,69550.0,69539.0,0.00048]
[1773207815724,0.0006306,69550.0,69539.0,0.00048]
[1773207815927,0.00022001,69556.0,69540.0,0.14910329]
[1773207816139,0.0006536,69569.0,69540.0,0.14910329]
[1773207816140,0.07187644,69564.0,69541.0,0.08298787]
[1773207816338,1e-08,69564.0,69542.0,0.07189899]
[1773207816515,1e-08,69564.0,69543.0,0.00148]
[1773207817645,0.00037368,69564.0,69551.0,0.08298787]
[1773207817801,0.00037368,69564.0,69552.0,0.00148]
[1773207818004,0.08272427,69580.0,69552.0,0.00148]
[1773207818317,0.0828363,69580.0,69552.0,0.00148]
[1773207819299,0.07186076,69579.0,69553.0,0.07188762]
[1773207819502,0.08272427,69578.0,69554.0,0.08298787]
[1773207819959,0.08272427,69578.0,69553.0,0.07188762]
[1773207820357,0.08272427,69578.0,69554.0,0.00148]
[1773207820710,0.08272427,69578.0,69553.0,0.07188762]
[1773207820987,0.08272427,69578.0,69555.0,0.00148]
[1773207821466,0.07186282,69577.0,69556.0,0.07188452]
[1773207821674,0.08272427,69576.0,69556.0,0.07188452]
[1773207822656,0.08272427,69576.0,69557.0,0.00148]
[1773207823041,0.08272427,69576.0,69556.0,0.07188452]
[1773207823231,0.08272427,69576.0,69558.0,0.00148]
[1773207823638,0.07186489,69575.0,69559.0,0.07188142]
[1773207823837,0.08272427,69574.0,69559.0,0.07188142]
[1773207825826,0.07186695,69573.0,69559.0,0.07188142]
[1773207826645,0.07186695,69573.0,69559.0,0.15486929]
[1773207827173,0.07186695,69573.0,69560.0,0.14347092]
[1773207827413,0.07186695,69573.0,69561.0,0.03850008]
[1773207827576,0.00718673,69561.0,69558.0,0.07336142]
[1773207827772,0.03234029,69561.0,69558.0,0.07336142]
[1773207828025,0.24518517,69560.0,69540.0,0.07190106]
[1773207828193,0.24518517,69560.0,69541.0,0.00148]
[1773207828194,0.08272427,69559.0,69541.0,0.00148]
[1773207828492,0.08272427,69559.0,69540.0,0.07190106]
[1773207828493,0.08272427,69559.0,69534.0,0.07190678]
[1773207828494,0.05846905,69559.0,69534.0,0.07190678]
[1773207828713,0.05846905,69559.0,69537.0,0.00148]
[1773207829297,0.05858102,69559.0,69537.0,0.00148]
[1773207830191,0.07188245,69558.0,69538.0,0.07190313]
[1773207830387,0.09268064,69557.0,69538.0,0.07190313]
[1773207832219,0.07188452,69556.0,69538.0,0.07190313]
[1773207832403,0.09268064,69555.0,69538.0,0.07190313]
[1773207834063,0.07188452,69556.0,69538.0,0.07190313]
[1773207834231,0.09268064,69555.0,69538.0,0.07190313]
[1773207835216,0.07188659,69554.0,69538.0,0.07190313]
[1773207835350,0.16456723,69554.0,69538.0,0.07190313]
[1773207835550,0.09268064,69553.0,69538.0,0.07190313]
[1773207837500,0.07188865,69552.0,69538.0,0.07190313]
[1773207838616,0.16456844,69553.0,69538.0,0.07190313]
[1773207839112,0.02796358,69551.0,69540.0,0.1489107]
[1773207839335,0.07188351,69557.0,69541.0,0.09131114]
[1773207839530,0.072214,69559.0,69543.0,0.09131114]
[1773207839732,0.072214,69559.0,69545.0,0.09131114]
[1773207839932,0.00033198,69559.0,69545.0,0.09131114]
[1773207840428,0.06722338,69558.0,69545.0,0.09131114]
[1773207840545,0.06722338,69558.0,69545.0,0.1721651]
[1773207840747,0.06722338,69558.0,69546.0,0.09131114]
[1773207841177,0.06722338,69558.0,69549.0,0.09131114]
[1773207841376,0.00033198,69559.0,69549.0,0.09131114]
[1773207841547,0.07187071,69570.0,69551.0,0.09131114]
[1773207841752,0.07187071,69570.0,69552.0,0.00148]
[1773207841960,0.16454966,69572.0,69553.0,0.09131114]
[1773207842182,0.16454966,69572.0,69551.0,0.00037368]
[1773207842183,0.09268064,69571.0,69551.0,0.00037368]
[1773207842395,0.09268064,69571.0,69552.0,0.00148]
[1773207843235,0.09268064,69571.0,69553.0,0.09131114]
[1773207843543,0.00022001,69566.0,69554.0,0.07188659]
[1773207843743,0.07169436,69566.0,69555.0,0.09131114]
[1773207844240,0.07187365,69567.0,69555.0,0.09131114]
[1773207844901,0.00022001,69573.0,69558.0,0.09131114]
[1773207845090,0.00022001,69573.0,69557.0,0.1489107]
[1773207845091,0.00022001,69573.0,69559.0,0.00148]
[1773207845287,0.07208697,69573.0,69560.0,0.09131114]
[1773207845762,0.00022001,69573.0,69561.0,0.07187935]
[1773207846067,0.00022001,69573.0,69561.0,0.16319049]
[1773207847062,0.00022001,69573.0,69561.0,0.07187935]
[1773207847480,0.00022001,69573.0,69561.0,0.16319049]
[1773207847706,0.00022001,69573.0,69562.0,0.09131114]
[1773207848680,0.07208699,69573.0,69561.0,0.07187935]
[1773207848881,0.00022001,69573.0,69562.0,0.00148]
[1773207849382,0.00022001,69573.0,69562.0,0.09279114]
[1773207849581,0.00022001,69573.0,69562.0,0.00148]
[1773207849784,0.00022001,69573.0,69563.0,0.07187729]
[1773207850124,0.09268064,69588.0,69564.0,0.09131114]
[1773207850437,0.09268064,69588.0,69563.0,0.07187729]
[1773207850438,1e-08,69580.0,69567.0,0.09131114]
[1773207850581,1e-08,69580.0,69568.0,0.00148]
[1773207850582,0.09268064,69579.0,69568.0,0.00148]
[1773207850780,0.09268064,69579.0,69569.0,0.00148]
[1773207851189,0.09268064,69579.0,69563.0,0.07187729]
[1773207851394,0.09268064,69579.0,69564.0,0.00148]
[1773207851910,0.09268064,69578.0,69565.0,0.07187522]
[1773207853164,0.00022001,69579.0,69565.0,0.15781616]
[1773207854324,0.07208108,69579.0,69565.0,0.15781616]
[1773207855358,0.07208108,69579.0,69551.0,0.00037368]
[1773207855359,0.09268064,69578.0,69553.0,0.07188555]
[1773207855556,0.09268064,69578.0,69554.0,0.00148]
[1773207855766,0.09268064,69576.0,69555.0,0.07188555]
[1773207856302,0.09268064,69576.0,69560.0,0.1489107]
[1773207856475,0.09268064,69576.0,69561.0,0.00148]
[1773207856678,0.07186282,69577.0,69561.0,0.00148]
[1773207856882,0.07186282,69577.0,69562.0,0.08791715]
[1773207857088,0.16454346,69577.0,69561.0,0.00148]
[1773207857294,0.09268064,69576.0,69561.0,0.00148]
[1773207857673,0.07186282,69577.0,69562.0,0.09131114]
[1773207857954,0.07186282,69577.0,69563.0,0.07187729]